[Event "Live Chess"]
[Site "Chess.com"]
[Date "2024.06.01"]
[Round "-"]
[White "jonny_dzz"]
[Black "dl_chess"]
[Result "1-0"]
[WhiteElo "1865"]
[BlackElo "1171"]
[TimeControl "300"]
[EndTime "11:39:10 PDT"]
[Termination "jonny_dzz won by resignation"]

1. d4 {[%clk 0:04:58.8]} 1... Nf6 {[%clk 0:04:57.6]} 2. e3 {[%clk 0:04:58.7]}
2... g6 {[%clk 0:04:56.4]} 3. f4 {[%clk 0:04:58.2]} 3... Bg7 {[%clk 0:04:55.4]}
4. Bd3 {[%clk 0:04:57.6]} 4... d6 {[%clk 0:04:54.2]} 5. Nf3 {[%clk 0:04:56.3]}
5... O-O {[%clk 0:04:53.1]} 6. O-O {[%clk 0:04:55.1]} 6... e5 {[%clk 0:04:41.8]}
7. Nbd2 {[%clk 0:04:49.8]} 7... Re8 {[%clk 0:04:37.5]} 8. fxe5 {[%clk
0:04:48.4]} 8... dxe5 {[%clk 0:04:36.2]} 9. Nxe5 {[%clk 0:04:44.9]} 9... Nc6
{[%clk 0:04:05.1]} 10. Nxc6 {[%clk 0:04:38]} 10... bxc6 {[%clk 0:04:03.9]} 11.
c3 {[%clk 0:04:37]} 11... a5 {[%clk 0:03:58.3]} 12. Nf3 {[%clk 0:04:34]} 12...
Ba6 {[%clk 0:03:54.5]} 13. Bxa6 {[%clk 0:04:23.9]} 13... Rxa6 {[%clk 0:03:52.9]}
14. Qd3 {[%clk 0:04:23.2]} 14... Rb6 {[%clk 0:03:51.3]} 15. Qc4 {[%clk 0:04:21]}
15... Nd5 {[%clk 0:03:44.8]} 16. Qd3 {[%clk 0:03:58.3]} 16... Qd6 {[%clk
0:03:16.2]} 17. e4 {[%clk 0:03:54.7]} 17... Nf4 {[%clk 0:03:00.4]} 18. Bxf4
{[%clk 0:03:48.6]} 18... Qxf4 {[%clk 0:02:58.9]} 19. Ne5 {[%clk 0:03:46.4]}
19... Qg5 {[%clk 0:02:43.1]} 20. Nxf7 {[%clk 0:03:43]} 20... Qg4 {[%clk
0:02:19.3]} 21. Rf2 {[%clk 0:03:26.9]} 21... Rf8 {[%clk 0:02:14.3]} 22. Raf1
{[%clk 0:03:24.5]} 22... Qd7 {[%clk 0:02:01.1]} 23. Ne5 {[%clk 0:03:19.5]} 23...
Qe7 {[%clk 0:01:49.3]} 24. Qc4+ {[%clk 0:03:17]} 24... Kh8 {[%clk 0:01:46.8]}
25. Rxf8+ {[%clk 0:03:10.5]} 25... Bxf8 {[%clk 0:01:44.1]} 26. Rf7 {[%clk
0:02:50.6]} 26... Qe8 {[%clk 0:01:18.9]} 27. Rxc7 {[%clk 0:02:38.3]} 27... Rxb2
{[%clk 0:01:09]} 28. Nf7+ {[%clk 0:02:36.4]} 28... Qxf7 {[%clk 0:00:42]} 29.
Qxf7 {[%clk 0:02:26.9]} 29... Rb1+ {[%clk 0:00:40.6]} 30. Kf2 {[%clk 0:02:25.4]}
30... Rb2+ {[%clk 0:00:39.4]} 31. Kf3 {[%clk 0:02:23.9]} 1-0

[Event "Live Chess"]
[Site "Chess.com"]
[Date "2024.06.01"]
[Round "-"]
[White "LL220284LL"]
[Black "grandmaster1707"]
[Result "1-0"]
[WhiteElo "2578"]
[BlackElo "1467"]
[TimeControl "300"]
[EndTime "11:39:27 PDT"]
[Termination "LL220284LL won by resignation"]

1. b3 {[%clk 0:04:57.2]} 1... d5 {[%clk 0:04:55.3]} 2. Bb2 {[%clk 0:04:57.1]}
2... e6 {[%clk 0:04:51.4]} 3. Nf3 {[%clk 0:04:56.7]} 3... Nf6 {[%clk 0:04:50.7]}
4. e3 {[%clk 0:04:56.2]} 4... Be7 {[%clk 0:04:46]} 5. Rg1 {[%clk 0:04:55.3]}
5... b6 {[%clk 0:04:43.7]} 6. g4 {[%clk 0:04:54.3]} 6... h6 {[%clk 0:04:42.1]}
7. d3 {[%clk 0:04:49.9]} 7... Bb7 {[%clk 0:04:39.8]} 8. Nbd2 {[%clk 0:04:48.5]}
8... Nbd7 {[%clk 0:04:38.9]} 9. c4 {[%clk 0:04:46.1]} 9... c5 {[%clk 0:04:33.5]}
10. Be2 {[%clk 0:04:44.5]} 10... Qc7 {[%clk 0:04:31.6]} 11. Qc2 {[%clk
0:04:42.3]} 11... O-O-O {[%clk 0:04:29.9]} 12. O-O-O {[%clk 0:04:41.5]} 12... e5
{[%clk 0:04:26.9]} 13. cxd5 {[%clk 0:04:35.8]} 13... Nxd5 {[%clk 0:04:26]} 14.
a3 {[%clk 0:04:33.1]} 14... g6 {[%clk 0:04:07.6]} 15. Nc4 {[%clk 0:04:30.7]}
15... Bf6 {[%clk 0:03:58.6]} 16. Kb1 {[%clk 0:04:26]} 16... b5 {[%clk
0:03:56.7]} 17. Ncd2 {[%clk 0:04:23.5]} 17... b4 {[%clk 0:03:54.5]} 18. Ne4
{[%clk 0:04:15.2]} 18... bxa3 {[%clk 0:03:38.8]} 19. Bxa3 {[%clk 0:04:13.3]}
19... Be7 {[%clk 0:03:34.9]} 20. Rc1 {[%clk 0:04:08.7]} 20... Kb8 {[%clk
0:03:06.2]} 21. Nxc5 {[%clk 0:03:56.2]} 21... Bxc5 {[%clk 0:02:46.6]} 22. Bxc5
{[%clk 0:03:56.1]} 22... Nxc5 {[%clk 0:02:44.1]} 23. Qxc5 {[%clk 0:03:55]} 23...
Qd7 {[%clk 0:02:40.3]} 24. Nxe5 {[%clk 0:03:52.3]} 24... Qe6 {[%clk 0:02:34.5]}
25. Nc6+ {[%clk 0:03:49.3]} 25... Bxc6 {[%clk 0:02:32.9]} 26. Qxc6 {[%clk
0:03:49.2]} 26... Rd6 {[%clk 0:02:25.2]} 27. Qc4 {[%clk 0:03:33.3]} 27... Rb6
{[%clk 0:02:18.4]} 28. Bf3 {[%clk 0:03:25.6]} 28... Rd8 {[%clk 0:01:54.4]} 29.
Bxd5 {[%clk 0:03:24]} 29... Qxd5 {[%clk 0:01:53.9]} 30. Qxd5 {[%clk 0:03:22.2]}
30... Rxd5 {[%clk 0:01:53.5]} 31. Rc3 {[%clk 0:03:21.8]} 31... a5 {[%clk
0:01:51.3]} 32. Kc2 {[%clk 0:03:19.5]} 32... h5 {[%clk 0:01:48.4]} 33. g5 {[%clk
0:03:13.1]} 33... Rdb5 {[%clk 0:01:37.1]} 34. h4 {[%clk 0:03:09.8]} 34... a4
{[%clk 0:01:29.4]} 35. Rb1 {[%clk 0:03:08.8]} 35... a3 {[%clk 0:01:26.5]} 36.
Ra1 {[%clk 0:03:07.6]} 36... Ra6 {[%clk 0:01:22.6]} 37. f4 {[%clk 0:03:03.6]}
37... Re6 {[%clk 0:01:15.3]} 38. e4 {[%clk 0:03:00.1]} 38... Ra6 {[%clk
0:01:14]} 39. b4 {[%clk 0:02:58.3]} 39... Rxb4 {[%clk 0:01:10.5]} 40. Rcxa3
{[%clk 0:02:57.4]} 40... Rc6+ {[%clk 0:01:09.6]} 41. Rc3 {[%clk 0:02:55.2]}
41... Rcb6 {[%clk 0:01:07.7]} 42. Kd2 {[%clk 0:02:53.7]} 42... Rb2+ {[%clk
0:01:02.7]} 43. Rc2 {[%clk 0:02:51.9]} 43... R2b4 {[%clk 0:01:01]} 44. Rac1
{[%clk 0:02:50.5]} 44... f5 {[%clk 0:00:55.1]} 45. Rc8+ {[%clk 0:02:47.3]} 45...
Kb7 {[%clk 0:00:52.8]} 46. R1c7+ {[%clk 0:02:46]} 46... Ka6 {[%clk 0:00:51.6]}
47. Ra8+ {[%clk 0:02:44.4]} 47... Kb5 {[%clk 0:00:50.6]} 48. Ke3 {[%clk
0:02:39.3]} 48... Rb3 {[%clk 0:00:38.9]} 49. e5 {[%clk 0:02:35.8]} 49... Rb1
{[%clk 0:00:27.9]} 50. Ra2 {[%clk 0:02:30.2]} 50... Re1+ {[%clk 0:00:23.7]} 51.
Kd4 {[%clk 0:02:28.1]} 51... Rh1 {[%clk 0:00:19.3]} 52. Rc5+ {[%clk 0:02:26.6]}
52... Kb4 {[%clk 0:00:18.1]} 53. Rb2+ {[%clk 0:02:26]} 1-0

[Event "Live Chess"]
[Site "Chess.com"]
[Date "2024.06.01"]
[Round "-"]
[White "KwikPhoenix"]
[Black "Stanbad1"]
[Result "0-1"]
[WhiteElo "2433"]
[BlackElo "2690"]
[TimeControl "300"]
[EndTime "11:39:29 PDT"]
[Termination "Stanbad1 won by checkmate"]

1. Nc3 {[%clk 0:04:57.6]} 1... Nf6 {[%clk 0:04:56.6]} 2. e4 {[%clk 0:04:56.3]}
2... e5 {[%clk 0:04:51.1]} 3. f4 {[%clk 0:04:50.5]} 3... d5 {[%clk 0:04:50.2]}
4. fxe5 {[%clk 0:04:49.3]} 4... Nxe4 {[%clk 0:04:49.9]} 5. Qf3 {[%clk
0:04:43.3]} 5... f5 {[%clk 0:04:49.1]} 6. d4 {[%clk 0:04:38.2]} 6... c5 {[%clk
0:04:43.9]} 7. Nge2 {[%clk 0:04:30.4]} 7... Nc6 {[%clk 0:04:41.8]} 8. Be3 {[%clk
0:04:20.4]} 8... cxd4 {[%clk 0:04:38.3]} 9. Bxd4 {[%clk 0:04:17.9]} 9... Nxd4
{[%clk 0:04:36.7]} 10. Nxd4 {[%clk 0:04:15.3]} 10... Bc5 {[%clk 0:04:36]} 11.
O-O-O {[%clk 0:04:07.6]} 11... O-O {[%clk 0:04:33.4]} 12. Nb3 {[%clk 0:03:52.7]}
12... Be6 {[%clk 0:04:14.3]} 13. Nxc5 {[%clk 0:03:27.9]} 13... Nxc5 {[%clk
0:04:11.9]} 14. Nxd5 {[%clk 0:03:19.7]} 14... Qa5 {[%clk 0:04:10.7]} 15. Kb1
{[%clk 0:03:15.3]} 15... Ne4 {[%clk 0:04:04.1]} 16. Bc4 {[%clk 0:02:41.5]} 16...
Kh8 {[%clk 0:03:59.8]} 17. Ka1 {[%clk 0:02:21.9]} 17... Rac8 {[%clk 0:03:54.7]}
18. Bb3 {[%clk 0:02:19]} 18... Nd2 {[%clk 0:03:50.1]} 19. Qd3 {[%clk 0:02:13.6]}
19... Nxb3+ {[%clk 0:03:48.4]} 20. Qxb3 {[%clk 0:02:09.7]} 20... b5 {[%clk
0:03:45.7]} 21. Qb4 {[%clk 0:01:59.6]} 21... Qa6 {[%clk 0:03:43]} 22. Ne7 {[%clk
0:01:48.5]} 22... Qxa2# {[%clk 0:03:40.3]} 0-1

[Event "Live Chess"]
[Site "Chess.com"]
[Date "2024.06.01"]
[Round "-"]
[White "Grace6363"]
[Black "Golden_Plans"]
[Result "0-1"]
[WhiteElo "1151"]
[BlackElo "2238"]
[TimeControl "300"]
[EndTime "11:39:32 PDT"]
[Termination "Golden_Plans won by resignation"]

1. d4 {[%clk 0:04:56.6]} 1... Nf6 {[%clk 0:04:56.9]} 2. c4 {[%clk 0:04:53.4]}
2... e5 {[%clk 0:04:55.9]} 3. dxe5 {[%clk 0:04:52.2]} 3... Ng4 {[%clk
0:04:55.4]} 4. Bf4 {[%clk 0:04:50.6]} 4... Nc6 {[%clk 0:04:53.6]} 5. Nf3 {[%clk
0:04:49.5]} 5... Bc5 {[%clk 0:04:51.6]} 6. e3 {[%clk 0:04:46.9]} 6... Qe7 {[%clk
0:04:50.4]} 7. Nbd2 {[%clk 0:04:45.3]} 7... Ngxe5 {[%clk 0:04:49.3]} 8. Nxe5
{[%clk 0:04:44]} 8... Nxe5 {[%clk 0:04:49.2]} 9. Be2 {[%clk 0:04:41.4]} 9... Ng6
{[%clk 0:04:46.9]} 10. O-O {[%clk 0:04:39.7]} 10... Nxf4 {[%clk 0:04:45.4]} 11.
exf4 {[%clk 0:04:38.8]} 11... O-O {[%clk 0:04:44.9]} 12. Re1 {[%clk 0:04:37.5]}
12... d6 {[%clk 0:04:42.4]} 13. Bf3 {[%clk 0:04:30.6]} 13... Qf6 {[%clk
0:04:39.2]} 14. Ne4 {[%clk 0:04:11.6]} 14... Qxb2 {[%clk 0:04:36]} 15. Nxc5
{[%clk 0:04:07.5]} 15... dxc5 {[%clk 0:04:35.9]} 16. Re2 {[%clk 0:04:00.4]}
16... Qb4 {[%clk 0:04:33.5]} 17. Qb3 {[%clk 0:03:52.9]} 17... c6 {[%clk
0:04:29.8]} 18. Qxb4 {[%clk 0:03:51.5]} 18... cxb4 {[%clk 0:04:29.7]} 19. Rb2
{[%clk 0:03:47.2]} 19... a5 {[%clk 0:04:27.9]} 20. a3 {[%clk 0:03:44.7]} 20...
bxa3 {[%clk 0:04:26.2]} 21. Rxa3 {[%clk 0:03:44]} 21... Re8 {[%clk 0:04:25.4]}
22. g3 {[%clk 0:03:40.9]} 22... Bh3 {[%clk 0:04:23.9]} 23. Rb1 {[%clk
0:03:32.4]} 23... Re7 {[%clk 0:04:22.7]} 24. Bg2 {[%clk 0:03:28.6]} 24... Bf5
{[%clk 0:04:20.9]} 25. Rd1 {[%clk 0:03:23.7]} 25... Rae8 {[%clk 0:04:18.6]} 26.
Raa1 {[%clk 0:03:15.5]} 26... Bc2 {[%clk 0:04:12.5]} 27. Rdc1 {[%clk 0:03:13]}
27... Bb3 {[%clk 0:04:10.6]} 28. c5 {[%clk 0:03:10.4]} 28... a4 {[%clk
0:04:08.5]} 29. Bf1 {[%clk 0:03:05.1]} 29... Rd8 {[%clk 0:04:05.4]} 30. Bc4
{[%clk 0:02:54.2]} 30... Red7 {[%clk 0:04:02.1]} 31. Bxb3 {[%clk 0:02:52.2]}
31... axb3 {[%clk 0:04:01.2]} 32. Rab1 {[%clk 0:02:51.1]} 32... Rd3 {[%clk
0:03:55.8]} 33. Kg2 {[%clk 0:02:48]} 33... f6 {[%clk 0:03:53.1]} 34. h4 {[%clk
0:02:46.4]} 34... Kf7 {[%clk 0:03:47.5]} 35. g4 {[%clk 0:02:42.6]} 35... R8d4
{[%clk 0:03:45.7]} 36. f3 {[%clk 0:02:21.2]} 36... Rd2+ {[%clk 0:03:37.4]} 37.
Kg3 {[%clk 0:02:15.3]} 37... Rc2 {[%clk 0:03:28.8]} 38. Re1 {[%clk 0:02:02.7]}
38... Rdd2 {[%clk 0:03:27.5]} 39. Rg1 {[%clk 0:01:59.3]} 39... b2 {[%clk
0:03:25.8]} 40. g5 {[%clk 0:01:55.6]} 40... f5 {[%clk 0:03:24.3]} 41. h5 {[%clk
0:01:53.6]} 41... g6 {[%clk 0:03:23.4]} 42. h6 {[%clk 0:01:49.5]} 42... Rd3
{[%clk 0:03:20.2]} 43. Rg2 {[%clk 0:01:29.9]} 43... Rxg2+ {[%clk 0:03:18.1]} 44.
Kxg2 {[%clk 0:01:29.1]} 44... Rd2+ {[%clk 0:03:18]} 45. Kg3 {[%clk 0:01:28.4]}
45... Rc2 {[%clk 0:03:17.1]} 46. Kh3 {[%clk 0:01:20.7]} 46... Ke6 {[%clk
0:03:15.6]} 47. Kg3 {[%clk 0:01:19.3]} 47... Kd5 {[%clk 0:03:15]} 48. Kh3 {[%clk
0:01:01.7]} 48... Kc4 {[%clk 0:03:13.1]} 49. Kg3 {[%clk 0:00:58]} 49... Kb3
{[%clk 0:03:13]} 50. Re1 {[%clk 0:00:54.3]} 50... Rc1 {[%clk 0:03:11.9]} 51.
Re3+ {[%clk 0:00:53.2]} 51... Ka2 {[%clk 0:03:11.1]} 52. Re2 {[%clk 0:00:43.5]}
52... Ka1 {[%clk 0:03:08]} 53. Re3 {[%clk 0:00:33.8]} 53... b1=Q {[%clk
0:02:59.6]} 54. Ra3+ {[%clk 0:00:28.6]} 54... Kb2 {[%clk 0:02:58.9]} 0-1

[Event "Live Chess"]
[Site "Chess.com"]
[Date "2024.06.01"]
[Round "-"]
[White "Queensandpawns"]
[Black "nigelst"]
[Result "1-0"]
[WhiteElo "2434"]
[BlackElo "1672"]
[TimeControl "300"]
[EndTime "11:39:41 PDT"]
[Termination "Queensandpawns won by resignation"]

1. e4 {[%clk 0:04:58]} 1... c6 {[%clk 0:04:58.9]} 2. d4 {[%clk 0:04:56.3]} 2...
d5 {[%clk 0:04:58.3]} 3. Nc3 {[%clk 0:04:56.2]} 3... dxe4 {[%clk 0:04:56.7]} 4.
Nxe4 {[%clk 0:04:56.1]} 4... Bf5 {[%clk 0:04:55.1]} 5. Ng5 {[%clk 0:04:55.3]}
5... h6 {[%clk 0:04:50.9]} 6. Nxf7 {[%clk 0:04:54.1]} 6... Kxf7 {[%clk
0:04:48.8]} 7. Nf3 {[%clk 0:04:54]} 7... Nf6 {[%clk 0:04:45.8]} 8. Bc4+ {[%clk
0:04:51.2]} 8... Ke8 {[%clk 0:04:44.4]} 9. Ne5 {[%clk 0:04:47.4]} 9... e6 {[%clk
0:04:40.6]} 10. g4 {[%clk 0:04:44.2]} 10... Be4 {[%clk 0:04:35.8]} 11. f3 {[%clk
0:04:43.6]} 11... Bd5 {[%clk 0:04:34.6]} 12. Qd3 {[%clk 0:04:38.7]} 12... Bxc4
{[%clk 0:04:32.2]} 13. Qg6+ {[%clk 0:04:36.9]} 13... Ke7 {[%clk 0:04:25.5]} 14.
Qf7+ {[%clk 0:04:36.8]} 14... Kd6 {[%clk 0:04:24.6]} 15. Bf4 {[%clk 0:04:36.7]}
15... Kd5 {[%clk 0:04:13.6]} 16. b3 {[%clk 0:04:17.6]} 16... Bb4+ {[%clk
0:04:09.9]} 17. Kf2 {[%clk 0:04:12.3]} 17... Bb5 {[%clk 0:04:01]} 18. c4+ {[%clk
0:04:10]} 18... Bxc4 {[%clk 0:03:55.7]} 19. bxc4+ {[%clk 0:04:09.9]} 19... Kxd4
{[%clk 0:03:53.5]} 20. Rad1+ {[%clk 0:04:08.9]} 1-0

[Event "Live Chess"]
[Site "Chess.com"]
[Date "2024.06.01"]
[Round "-"]
[White "Nazar-Makarchuk"]
[Black "kylet1990"]
[Result "1-0"]
[WhiteElo "1570"]
[BlackElo "740"]
[TimeControl "300"]
[EndTime "11:39:58 PDT"]
[Termination "Nazar-Makarchuk won by checkmate"]

1. e4 {[%clk 0:04:58.3]} 1... c6 {[%clk 0:04:58.1]} 2. d4 {[%clk 0:04:57.3]}
2... d5 {[%clk 0:04:57.2]} 3. exd5 {[%clk 0:04:56.6]} 3... cxd5 {[%clk
0:04:55.8]} 4. c4 {[%clk 0:04:56.2]} 4... Bf5 {[%clk 0:04:52.9]} 5. cxd5 {[%clk
0:04:54.8]} 5... Qxd5 {[%clk 0:04:51]} 6. Nf3 {[%clk 0:04:54.4]} 6... Nf6 {[%clk
0:04:48.1]} 7. Bd3 {[%clk 0:04:53.7]} 7... Bxd3 {[%clk 0:04:45.9]} 8. Qxd3
{[%clk 0:04:53.1]} 8... Nc6 {[%clk 0:04:42.7]} 9. O-O {[%clk 0:04:52.4]} 9...
Nb4 {[%clk 0:04:37.7]} 10. Qb3 {[%clk 0:04:45.4]} 10... Qxb3 {[%clk 0:04:33.2]}
11. axb3 {[%clk 0:04:43.7]} 11... Nc2 {[%clk 0:04:30.1]} 12. Ra4 {[%clk
0:04:35.8]} 12... O-O-O {[%clk 0:04:23]} 13. Rc4+ {[%clk 0:04:33.1]} 13... Kb8
{[%clk 0:04:18.4]} 14. Rxc2 {[%clk 0:04:32.3]} 14... e6 {[%clk 0:04:16.3]} 15.
Bg5 {[%clk 0:04:31.2]} 15... Be7 {[%clk 0:04:14]} 16. Nc3 {[%clk 0:04:29.9]}
16... h6 {[%clk 0:04:12.1]} 17. Bxf6 {[%clk 0:04:28.7]} 17... Bxf6 {[%clk
0:04:09.9]} 18. Ne4 {[%clk 0:04:28.1]} 18... Bxd4 {[%clk 0:04:03.1]} 19. Nxd4
{[%clk 0:04:26.1]} 19... Rxd4 {[%clk 0:04:00.5]} 20. f3 {[%clk 0:04:24.9]} 20...
Rb4 {[%clk 0:03:54.2]} 21. Rc3 {[%clk 0:04:22.7]} 21... Rd8 {[%clk 0:03:46]} 22.
Rfc1 {[%clk 0:04:20]} 22... f5 {[%clk 0:03:37.9]} 23. Nc5 {[%clk 0:04:18.3]}
23... Rbd4 {[%clk 0:03:29.9]} 24. Nxe6 {[%clk 0:04:14.9]} 24... Rd1+ {[%clk
0:03:26.3]} 25. Rxd1 {[%clk 0:04:14.3]} 25... Rxd1+ {[%clk 0:03:12]} 26. Kf2
{[%clk 0:04:13.7]} 26... Rb1 {[%clk 0:03:06]} 27. Rc2 {[%clk 0:04:11.8]} 27...
Rd1 {[%clk 0:03:02.3]} 28. Nxg7 {[%clk 0:04:10.7]} 28... Rd7 {[%clk 0:02:58.9]}
29. Nxf5 {[%clk 0:04:09.2]} 29... h5 {[%clk 0:02:55.6]} 30. Ng3 {[%clk
0:04:07.9]} 30... h4 {[%clk 0:02:53]} 31. Nf5 {[%clk 0:04:07]} 31... Rh7 {[%clk
0:02:50.4]} 32. h3 {[%clk 0:04:04.6]} 32... a6 {[%clk 0:02:48.2]} 33. Rc4 {[%clk
0:04:04.1]} 33... Rd7 {[%clk 0:02:39.3]} 34. Rxh4 {[%clk 0:04:00.2]} 34... Rd2+
{[%clk 0:02:36.3]} 35. Kg3 {[%clk 0:03:58.8]} 35... Rxb2 {[%clk 0:02:34.3]} 36.
Rb4 {[%clk 0:03:57.9]} 36... a5 {[%clk 0:02:30.2]} 37. Rb5 {[%clk 0:03:56.5]}
37... Ka7 {[%clk 0:02:22.5]} 38. Nd6 {[%clk 0:03:55.6]} 38... b6 {[%clk
0:02:17.7]} 39. Nc8+ {[%clk 0:03:52.7]} 39... Ka6 {[%clk 0:02:15.6]} 40. Rxb6#
{[%clk 0:03:51.8]} 1-0

[Event "Live Chess"]
[Site "Chess.com"]
[Date "2024.06.01"]
[Round "-"]
[White "chessfiction"]
[Black "willc-h99"]
[Result "1-0"]
[WhiteElo "2418"]
[BlackElo "2619"]
[TimeControl "300"]
[EndTime "11:40:07 PDT"]
[Termination "chessfiction won on time"]

1. e4 {[%clk 0:04:52.6]} 1... c6 {[%clk 0:04:59.1]} 2. d4 {[%clk 0:04:47.2]}
2... d5 {[%clk 0:04:58.6]} 3. exd5 {[%clk 0:04:36.8]} 3... cxd5 {[%clk
0:04:58.5]} 4. Bd3 {[%clk 0:04:34.3]} 4... Nc6 {[%clk 0:04:57.7]} 5. c3 {[%clk
0:04:33.7]} 5... e6 {[%clk 0:04:56.9]} 6. Nf3 {[%clk 0:04:32.4]} 6... Bd6 {[%clk
0:04:56.1]} 7. O-O {[%clk 0:04:31.7]} 7... Nge7 {[%clk 0:04:53.2]} 8. Qc2 {[%clk
0:04:28.9]} 8... Ng6 {[%clk 0:04:29.6]} 9. Re1 {[%clk 0:04:13.1]} 9... Qc7
{[%clk 0:04:12.1]} 10. Na3 {[%clk 0:03:52.5]} 10... a6 {[%clk 0:04:10.1]} 11.
Bg5 {[%clk 0:03:41]} 11... h6 {[%clk 0:03:27.9]} 12. Bxg6 {[%clk 0:03:31.9]}
12... hxg5 {[%clk 0:03:26.4]} 13. Nxg5 {[%clk 0:03:31.8]} 13... fxg6 {[%clk
0:03:14.3]} 14. Qxg6+ {[%clk 0:03:30.1]} 14... Kf8 {[%clk 0:03:13.7]} 15. Rxe6
{[%clk 0:03:24.6]} 15... Bxh2+ {[%clk 0:03:00.6]} 16. Kf1 {[%clk 0:03:22.2]}
16... Bxe6 {[%clk 0:01:33.5]} 17. Nxe6+ {[%clk 0:03:20.4]} 17... Ke7 {[%clk
0:01:33.2]} 18. Nxc7 {[%clk 0:03:10]} 18... Bxc7 {[%clk 0:01:33.1]} 19. Re1+
{[%clk 0:03:08.4]} 19... Kd8 {[%clk 0:01:19.3]} 20. Qxg7 {[%clk 0:03:01.7]}
20... Rh1+ {[%clk 0:01:14.8]} 21. Ke2 {[%clk 0:03:00.4]} 21... Rxe1+ {[%clk
0:01:14.7]} 22. Kxe1 {[%clk 0:03:00.3]} 22... Kc8 {[%clk 0:01:08.2]} 23. Qg8+
{[%clk 0:02:57.2]} 23... Nd8 {[%clk 0:01:02.2]} 24. Qxd5 {[%clk 0:02:56.2]}
24... Ra7 {[%clk 0:00:53.8]} 25. Nc4 {[%clk 0:02:52.9]} 25... b5 {[%clk
0:00:47.3]} 26. Nd6+ {[%clk 0:02:49.4]} 26... Kb8 {[%clk 0:00:46.7]} 27. f4
{[%clk 0:02:44.1]} 27... Bxd6 {[%clk 0:00:24.6]} 28. Qxd6+ {[%clk 0:02:42.7]}
28... Kc8 {[%clk 0:00:24.1]} 29. g4 {[%clk 0:02:28.7]} 29... Rc7 {[%clk
0:00:23.5]} 30. g5 {[%clk 0:02:24.6]} 30... Nf7 {[%clk 0:00:19.8]} 31. Qxa6+
{[%clk 0:02:13]} 31... Kd8 {[%clk 0:00:19.1]} 32. Qxb5 {[%clk 0:02:09.9]} 32...
Nd6 {[%clk 0:00:19]} 33. Qb6 {[%clk 0:02:07.1]} 33... Kc8 {[%clk 0:00:18.5]} 34.
Qxc7+ {[%clk 0:02:04.4]} 34... Kxc7 {[%clk 0:00:17.1]} 35. g6 {[%clk 0:02:04]}
35... Nf5 {[%clk 0:00:15.8]} 36. a4 {[%clk 0:02:00.5]} 36... Kb6 {[%clk
0:00:14.6]} 37. b4 {[%clk 0:01:59.1]} 37... Kc6 {[%clk 0:00:14.1]} 38. a5 {[%clk
0:01:58]} 38... Kb5 {[%clk 0:00:13]} 39. Kd2 {[%clk 0:01:57.2]} 39... Kc6 {[%clk
0:00:11.8]} 40. Kd3 {[%clk 0:01:55.9]} 40... Kd5 {[%clk 0:00:11.5]} 41. c4+
{[%clk 0:01:54.6]} 41... Kc6 {[%clk 0:00:11.4]} 42. a6 {[%clk 0:01:53.7]} 42...
Kb6 {[%clk 0:00:10.4]} 43. b5 {[%clk 0:01:52.9]} 43... Ka7 {[%clk 0:00:09.2]}
44. c5 {[%clk 0:01:51.5]} 44... Ne7 {[%clk 0:00:07]} 45. g7 {[%clk 0:01:49.4]}
45... Ng8 {[%clk 0:00:05.5]} 46. d5 {[%clk 0:01:48.3]} 46... Ne7 {[%clk
0:00:04.3]} 47. Kc4 {[%clk 0:01:46.6]} 47... Ka8 {[%clk 0:00:01.9]} 48. f5
{[%clk 0:01:45]} 48... Ng8 {[%clk 0:00:00.2]} 49. b6 {[%clk 0:01:43.9]} 1-0

[Event "Live Chess"]
[Site "Chess.com"]
[Date "2024.06.01"]
[Round "-"]
[White "Cruiseylee78"]
[Black "Dhaydon19"]
[Result "0-1"]
[WhiteElo "1702"]
[BlackElo "2685"]
[TimeControl "300"]
[EndTime "11:40:17 PDT"]
[Termination "Dhaydon19 won by resignation"]

1. d4 {[%clk 0:04:51.3]} 1... c6 {[%clk 0:04:58]} 2. Bf4 {[%clk 0:04:50.3]} 2...
d5 {[%clk 0:04:57.5]} 3. e3 {[%clk 0:04:49.6]} 3... Nf6 {[%clk 0:04:57.2]} 4.
Nf3 {[%clk 0:04:48.9]} 4... g6 {[%clk 0:04:56.8]} 5. Bd3 {[%clk 0:04:48.1]} 5...
Bg7 {[%clk 0:04:56.5]} 6. Nbd2 {[%clk 0:04:47.2]} 6... O-O {[%clk 0:04:56.1]} 7.
c3 {[%clk 0:04:46.4]} 7... Nbd7 {[%clk 0:04:55.8]} 8. Qc2 {[%clk 0:04:44.5]}
8... Re8 {[%clk 0:04:55.4]} 9. O-O-O {[%clk 0:04:43.3]} 9... Ng4 {[%clk
0:04:54.2]} 10. Nb3 {[%clk 0:04:38.1]} 10... e5 {[%clk 0:04:52.1]} 11. Bg5
{[%clk 0:04:36.4]} 11... f6 {[%clk 0:04:47.7]} 12. h3 {[%clk 0:04:16.6]} 12...
fxg5 {[%clk 0:04:45.4]} 13. hxg4 {[%clk 0:04:15.7]} 13... e4 {[%clk 0:04:45]}
14. Bxe4 {[%clk 0:04:10.6]} 14... dxe4 {[%clk 0:04:43.5]} 15. Nfd2 {[%clk
0:03:57.1]} 15... Nf6 {[%clk 0:04:42.2]} 16. f3 {[%clk 0:03:53.7]} 16... exf3
{[%clk 0:04:39.4]} 17. gxf3 {[%clk 0:03:53.6]} 17... Rxe3 {[%clk 0:04:36.4]} 18.
Rh3 {[%clk 0:03:44.7]} 18... Bxg4 {[%clk 0:04:34.1]} 19. Rg3 {[%clk 0:03:02.8]}
19... Bf5 {[%clk 0:04:31.8]} 0-1